[Event "Snabb-SM för veteraner, 65+ 2019"]
[Site "Schackcentrum, Vegagatan 20, Gothenburg, Sweden"]
[Date "2019.10.06"]
[Round "8.2"]
[White "Fransson, Lennart"]
[Black "Kvarby, Anders"]
[Result "0-1"]
[TimeControl "15 minutes + 10 seconds per move from move one"]
[WhiteFideId "1706756"]
[BlackFideId "1746596"]
[WhiteElo "1983"]
[BlackElo "1887"]

1. c4 {[%clk 00:15:18]} {[%emt 00:00:01]} g6 {[%clk 00:14:28]} {[%emt
00:00:53]} 2. g3 {[%clk 00:15:25]} {[%emt 00:00:03]} Bg7 {[%clk 00:14:36]}
{[%emt 00:00:02]} 3. Bg2 {[%clk 00:15:33]} c5 {[%clk 00:14:32]} {[%emt
00:00:15]} 4. Nc3 {[%clk 00:15:33]} {[%emt 00:00:10]} Nc6 {[%clk 00:14:30]}
{[%emt 00:00:12]} 5. d3 {[%clk 00:15:34]} {[%emt 00:00:08]} Nf6 {[%clk
00:14:04]} {[%emt 00:00:37]} 6. e4 {[%clk 00:15:41]} {[%emt 00:00:03]} d6
{[%clk 00:13:43]} {[%emt 00:00:31]} 7. Nge2 {[%clk 00:15:46]} {[%emt 00:00:04]}
O-O {[%clk 00:13:46]} {[%emt 00:00:08]} 8. O-O {[%clk 00:15:53]} {[%emt
00:00:03]} b6 {[%clk 00:12:18]} {[%emt 00:01:38]} 9. f4 {[%clk 00:15:49]}
{[%emt 00:00:13]} Nd4 {[%clk 00:11:38]} {[%emt 00:00:52]} 10. Nxd4 {[%clk
00:15:50]} {[%emt 00:00:09]} cxd4 {[%clk 00:11:47]} {[%emt 00:00:01]} 11. e5
{[%clk 00:15:22]} {[%emt 00:00:38]} dxc3 {[%clk 00:11:27]} {[%emt 00:00:30]} 12.
Bxa8 {[%clk 00:15:28]} {[%emt 00:00:03]} cxb2 {[%clk 00:11:33]} {[%emt
00:00:05]} 13. Bxb2 {[%clk 00:15:31]} {[%emt 00:00:07]} Bh3 {[%clk 00:10:37]}
{[%emt 00:01:06]} 14. Bg2 {[%clk 00:15:38]} {[%emt 00:00:03]} Bxg2 {[%clk
00:10:44]} {[%emt 00:00:03]} 15. Kxg2 {[%clk 00:15:46]} {[%emt 00:00:02]} dxe5
{[%clk 00:09:17]} {[%emt 00:01:38]} 16. Bxe5 {[%clk 00:15:32]} {[%emt
00:00:23]} h5 {[%clk 00:09:05]} {[%emt 00:00:22]} 17. h3 {[%clk 00:15:36]}
{[%emt 00:00:05]} Nd7 {[%clk 00:08:43]} {[%emt 00:00:33]} 18. Bxg7 {[%clk
00:15:36]} {[%emt 00:00:09]} Kxg7 {[%clk 00:08:52]} {[%emt 00:00:01]} 19. Qe2
{[%clk 00:14:17]} {[%emt 00:01:29]} e6 {[%clk 00:08:36]} {[%emt 00:00:27]} 20.
d4 {[%clk 00:14:16]} {[%emt 00:00:11]} Qa8+ {[%clk 00:07:56]} {[%emt 00:00:49]}
21. Qf3 {[%clk 00:14:22]} {[%emt 00:00:05]} Qc8 {[%clk 00:08:04]} {[%emt
00:00:03]} 22. Rac1 {[%clk 00:14:21]} {[%emt 00:00:10]} Qa6 {[%clk 00:08:08]}
{[%emt 00:00:06]} 23. Rf2 {[%clk 00:14:23]} {[%emt 00:00:08]} Rc8 {[%clk
00:08:07]} {[%emt 00:00:11]} 24. Rfc2 {[%clk 00:13:14]} {[%emt 00:01:18]} Nf6
{[%clk 00:07:36]} {[%emt 00:00:41]} 25. Qe3 {[%clk 00:12:56]} {[%emt 00:00:28]}
Qb7+ {[%clk 00:07:25]} {[%emt 00:00:22]} 26. Kh2 {[%clk 00:13:03]} {[%emt
00:00:02]} Ne4 {[%clk 00:05:56]} {[%emt 00:01:40]} 27. c5 {[%clk 00:11:00]}
{[%emt 00:02:13]} bxc5 {[%clk 00:05:26]} {[%emt 00:00:40]} 28. dxc5 {[%clk
00:11:07]} {[%emt 00:00:02]} Qc6 {[%clk 00:05:21]} {[%emt 00:00:15]} 29. Qd4+
{[%clk 00:10:41]} {[%emt 00:00:36]} Kh7 {[%clk 00:05:11]} {[%emt 00:00:20]} 30.
Rd1 {[%clk 00:09:12]} {[%emt 00:01:38]} Rc7 {[%clk 00:02:58]} {[%emt 00:02:24]}
31. Rb1 {[%clk 00:08:06]} {[%emt 00:01:17]} Rd7 {[%clk 00:02:23]} {[%emt
00:00:46]} 32. Qc4 {[%clk 00:06:40]} {[%emt 00:01:34]} Nd2 {[%clk 00:02:16]}
{[%emt 00:00:18]} 33. Qc3 {[%clk 00:02:32]} {[%emt 00:04:17]} Nxb1 {[%clk
00:01:52]} {[%emt 00:00:34]} 34. Qb2 {[%clk 00:02:09]} {[%emt 00:00:33]} Rb7
{[%clk 00:01:42]} {[%emt 00:00:21]} 35. Qf6 {[%clk 00:02:04]} {[%emt 00:00:15]}
Qe4 {[%clk 00:01:43]} {[%emt 00:00:09]} 36. Rg2 {[%clk 00:01:48]} {[%emt
00:00:26]} Na3 {[%clk 00:01:42]} {[%emt 00:00:11]} 37. Qc3 {[%clk 00:01:40]}
{[%emt 00:00:17]} Nc4 {[%clk 00:01:39]} {[%emt 00:00:14]} 38. Rc2 {[%clk
00:01:31]} {[%emt 00:00:19]} Ne3 {[%clk 00:01:35]} {[%emt 00:00:14]} 39. Rb2
{[%clk 00:01:09]} {[%emt 00:00:32]} Rc7 {[%clk 00:01:11]} {[%emt 00:00:35]} 40.
Re2 {[%clk 00:01:06]} {[%emt 00:00:12]} Nf1+ {[%clk 00:01:16]} {[%emt
00:00:05]} 0-1

[Event "Snabb-SM för veteraner, 65+ 2019"]
[Site "Schackcentrum, Vegagatan 20, Gothenburg, Sweden"]
[Date "2019.10.06"]
[Round "8.3"]
[White "Dolata, Henryk"]
[Black "Wahlstrom, Lennart"]
[Result "1-0"]
[TimeControl "15 minutes + 10 seconds per move from move one"]
[WhiteFideId "1709046"]
[BlackFideId "1706829"]
[WhiteElo "2064"]
[BlackElo "2109"]

1. e4 {[%clk 00:15:18]} {[%emt 00:00:01]} e5 {[%clk 00:15:15]} {[%emt
00:00:05]} 2. Nf3 {[%clk 00:15:26]} {[%emt 00:00:02]} Nc6 {[%clk 00:15:24]}
{[%emt 00:00:02]} 3. d4 {[%clk 00:15:34]} {[%emt 00:00:02]} exd4 {[%clk
00:15:31]} {[%emt 00:00:02]} 4. Nxd4 {[%clk 00:15:44]} Nf6 {[%clk 00:15:39]}
{[%emt 00:00:02]} 5. Nc3 {[%clk 00:15:53]} Bb4 {[%clk 00:15:46]} {[%emt
00:00:04]} 6. Nxc6 {[%clk 00:16:01]} {[%emt 00:00:02]} dxc6 {[%clk 00:15:54]}
{[%emt 00:00:01]} 7. Bd3 {[%clk 00:14:04]} {[%emt 00:02:07]} O-O {[%clk
00:15:32]} {[%emt 00:00:32]} 8. O-O {[%clk 00:14:09]} {[%emt 00:00:05]} Re8
{[%clk 00:14:15]} {[%emt 00:01:27]} 9. Bg5 {[%clk 00:12:26]} {[%emt 00:01:53]}
Qd6 {[%clk 00:13:31]} {[%emt 00:00:53]} 10. Re1 {[%clk 00:09:34]} {[%emt
00:03:02]} Ng4 {[%clk 00:09:24]} {[%emt 00:04:17]} 11. g3 {[%clk 00:07:44]}
{[%emt 00:02:00]} Bc5 {[%clk 00:08:26]} {[%emt 00:01:08]} 12. Rf1 {[%clk
00:07:10]} {[%emt 00:00:44]} Ne5 {[%clk 00:04:51]} {[%emt 00:03:44]} 13. Kg2
{[%clk 00:05:33]} {[%emt 00:01:46]} Qe6 {[%clk 00:04:07]} {[%emt 00:00:54]} 14.
Qh5 {[%clk 00:04:45]} {[%emt 00:00:58]} h6 {[%clk 00:02:56]} {[%emt 00:01:21]}
15. Bf4 {[%clk 00:03:06]} {[%emt 00:01:48]} Qf6 {[%clk 00:02:14]} {[%emt
00:00:52]} 16. Qe2 {[%clk 00:02:54]} {[%emt 00:00:22]} Qe6 {[%clk 00:01:37]}
{[%emt 00:00:47]} 17. f3 {[%clk 00:01:24]} {[%emt 00:01:40]} Qh3+ {[%clk
00:01:38]} {[%emt 00:00:09]} 18. Kh1 {[%clk 00:01:33]} Bd6 {[%clk 00:01:12]}
{[%emt 00:00:37]} 19. Be3 {[%clk 00:00:31]} {[%emt 00:01:12]} Be6 {[%clk
00:00:55]} {[%emt 00:00:26]} 20. Qf2 {[%clk 00:00:32]} {[%emt 00:00:08]} Nc4
{[%clk 00:00:47]} {[%emt 00:00:20]} 21. Bc1 {[%clk 00:00:32]} {[%emt 00:00:11]}
Rad8 {[%clk 00:00:48]} {[%emt 00:00:08]} 22. Re1 {[%clk 00:00:34]} {[%emt
00:00:08]} Be5 {[%clk 00:00:34]} {[%emt 00:00:24]} 23. Bxc4 {[%clk 00:00:32]}
{[%emt 00:00:13]} Bxc4 {[%clk 00:00:42]} {[%emt 00:00:02]} 24. Be3 {[%clk
00:00:40]} {[%emt 00:00:01]} Rd7 {[%clk 00:00:14]} {[%emt 00:00:38]} 25. Rad1
{[%clk 00:00:49]} {[%emt 00:00:01]} Red8 {[%clk 00:00:23]} {[%emt 00:00:01]} 26.
Rxd7 {[%clk 00:00:57]} {[%emt 00:00:01]} Rxd7 {[%clk 00:00:32]} {[%emt
00:00:02]} 27. a3 {[%clk 00:00:51]} {[%emt 00:00:16]} b6 {[%clk 00:00:33]}
{[%emt 00:00:09]} 28. Rd1 {[%clk 00:00:47]} {[%emt 00:00:14]} Bxc3 {[%clk
00:00:31]} {[%emt 00:00:11]} 29. Rxd7 {[%clk 00:00:55]} {[%emt 00:00:02]} Qxd7
{[%clk 00:00:39]} {[%emt 00:00:02]} 30. bxc3 {[%clk 00:01:04]} {[%emt
00:00:02]} Qd1+ {[%clk 00:00:44]} {[%emt 00:00:05]} 31. Kg2 {[%clk 00:01:13]}
Be2 {[%clk 00:00:40]} {[%emt 00:00:15]} 32. Bf4 {[%clk 00:01:14]} {[%emt
00:00:09]} Qxc2 {[%clk 00:00:41]} {[%emt 00:00:09]} 33. Bxc7 {[%clk 00:01:20]}
{[%emt 00:00:04]} Qd3 {[%clk 00:00:36]} {[%emt 00:00:14]} 34. Be5 {[%clk
00:01:20]} {[%emt 00:00:08]} Bd1 {[%clk 00:00:38]} {[%emt 00:00:11]} 35. h4
{[%clk 00:01:13]} {[%emt 00:00:17]} c5 {[%clk 00:00:38]} {[%emt 00:00:10]} 36.
Bb8 {[%clk 00:01:14]} {[%emt 00:00:09]} Qd7 {[%clk 00:00:37]} {[%emt 00:00:11]}
37. Qe3 {[%clk 00:01:13]} {[%emt 00:00:10]} Bb3 {[%clk 00:00:40]} {[%emt
00:00:07]} 38. Bf4 {[%clk 00:01:08]} {[%emt 00:00:15]} Qd1 {[%clk 00:00:47]}
{[%emt 00:00:04]} 39. Qd2 {[%clk 00:01:08]} {[%emt 00:00:10]} Qxd2+ {[%clk
00:00:51]} {[%emt 00:00:05]} 40. Bxd2 {[%clk 00:01:18]} Kf8 {[%clk 00:00:59]}
{[%emt 00:00:02]} 41. Kf2 {[%clk 00:01:26]} Ke7 {[%clk 00:01:08]} 42. Ke3
{[%clk 00:01:36]} Kd6 {[%clk 00:01:15]} {[%emt 00:00:05]} 43. Kd3 {[%clk
00:01:32]} {[%emt 00:00:12]} b5 {[%clk 00:01:22]} {[%emt 00:00:05]} 44. Bf4+
{[%clk 00:01:33]} {[%emt 00:00:08]} Ke6 {[%clk 00:01:27]} {[%emt 00:00:05]} 45.
Be3 {[%clk 00:01:39]} {[%emt 00:00:04]} Kd6 {[%clk 00:01:29]} {[%emt 00:00:09]}
46. Bf4+ {[%clk 00:01:29]} {[%emt 00:00:19]} Ke6 {[%clk 00:01:35]} {[%emt
00:00:03]} 47. Ke3 {[%clk 00:01:26]} {[%emt 00:00:14]} a5 {[%clk 00:01:41]}
{[%emt 00:00:05]} 48. Bc7 {[%clk 00:01:33]} {[%emt 00:00:03]} a4 {[%clk
00:01:46]} {[%emt 00:00:05]} 49. f4 {[%clk 00:01:34]} {[%emt 00:00:09]} h5
{[%clk 00:01:44]} {[%emt 00:00:12]} 50. f5+ {[%clk 00:01:37]} {[%emt 00:00:07]}
Kd7 {[%clk 00:01:50]} {[%emt 00:00:04]} 51. Bb8 {[%clk 00:01:42]} {[%emt
00:00:05]} Bd1 {[%clk 00:01:53]} {[%emt 00:00:07]} 52. e5 {[%clk 00:01:36]}
{[%emt 00:00:15]} Bc2 {[%clk 00:01:56]} {[%emt 00:00:07]} 53. Kf4 {[%clk
00:01:43]} {[%emt 00:00:03]} Bd1 {[%emt 00:00:34]} 54. Bd6 {[%clk 00:01:43]}
{[%emt 00:00:06]} Kc6 {[%clk 00:01:19]} {[%emt 00:00:28]} 55. Bf8 {[%clk
00:01:40]} {[%emt 00:00:13]} b4 {[%clk 00:00:56]} {[%emt 00:00:34]} 56. cxb4
{[%clk 00:01:34]} {[%emt 00:00:15]} c4 {[%clk 00:00:37]} {[%emt 00:00:29]} 57.
Bxg7 {[%clk 00:00:46]} {[%emt 00:00:58]} c3 {[%clk 00:00:31]} {[%emt 00:00:16]}
58. Bh6 {[%clk 00:00:15]} {[%emt 00:00:42]} Kd5 {[%clk 00:00:21]} {[%emt
00:00:20]} 59. e6 {[%clk 00:00:19]} {[%emt 00:00:05]} fxe6 {[%clk 00:00:24]}
{[%emt 00:00:07]} 60. f6 {[%clk 00:00:28]} e5+ {[%clk 00:00:30]} {[%emt
00:00:05]} 61. Kg5 {[%emt 00:00:25]} e4 62. Kg6 {[%clk 00:00:13]} Ke6 1-0

[Event "Snabb-SM för veteraner, 65+ 2019"]
[Site "Schackcentrum, Vegagatan 20, Gothenburg, Sweden"]
[Date "2019.10.06"]
[Round "8.4"]
[White "Nyberg, Bo"]
[Black "Green, Per"]
[Result "0-1"]
[TimeControl "15 minutes + 10 seconds per move from move one"]
[WhiteFideId "1710583"]
[BlackFideId "1703811"]
[WhiteElo "1806"]
[BlackElo "1923"]

1. d4 {[%clk 00:15:16]} {[%emt 00:00:04]} Nf6 {[%clk 00:14:37]} {[%emt
00:00:44]} 2. Bf4 {[%clk 00:15:23]} {[%emt 00:00:02]} d5 {[%clk 00:14:46]}
{[%emt 00:00:02]} 3. e3 {[%clk 00:15:30]} {[%emt 00:00:02]} c5 {[%clk
00:14:43]} {[%emt 00:00:13]} 4. Nd2 {[%clk 00:15:25]} {[%emt 00:00:15]} cxd4
{[%clk 00:14:31]} {[%emt 00:00:22]} 5. exd4 {[%clk 00:15:32]} {[%emt 00:00:02]}
Nc6 {[%clk 00:14:34]} {[%emt 00:00:08]} 6. Ngf3 {[%clk 00:15:30]} {[%emt
00:00:11]} Bg4 {[%clk 00:14:26]} {[%emt 00:00:18]} 7. c3 {[%clk 00:15:34]}
{[%emt 00:00:06]} e6 {[%clk 00:13:48]} {[%emt 00:00:48]} 8. Bd3 {[%clk
00:15:25]} {[%emt 00:00:19]} Nh5 {[%clk 00:13:22]} {[%emt 00:00:36]} 9. Be3
{[%clk 00:13:58]} {[%emt 00:01:37]} Bd6 {[%clk 00:13:25]} {[%emt 00:00:08]} 10.
h3 {[%clk 00:13:51]} {[%emt 00:00:17]} Bxf3 {[%clk 00:13:28]} {[%emt 00:00:07]}
11. Nxf3 {[%clk 00:13:58]} {[%emt 00:00:03]} Nf4 {[%clk 00:13:17]} {[%emt
00:00:21]} 12. O-O {[%clk 00:13:21]} {[%emt 00:00:47]} Nxd3 {[%clk 00:13:17]}
{[%emt 00:00:10]} 13. Qxd3 {[%clk 00:13:29]} {[%emt 00:00:02]} h6 {[%clk
00:13:03]} {[%emt 00:00:24]} 14. a3 {[%clk 00:12:04]} {[%emt 00:01:35]} O-O
{[%clk 00:10:43]} {[%emt 00:02:30]} 15. Rad1 {[%clk 00:11:45]} {[%emt
00:00:29]} Rc8 {[%clk 00:10:33]} {[%emt 00:00:21]} 16. Rfe1 {[%clk 00:11:49]}
{[%emt 00:00:05]} a6 {[%clk 00:10:28]} {[%emt 00:00:15]} 17. Bc1 {[%clk
00:11:50]} {[%emt 00:00:10]} Qf6 {[%clk 00:09:38]} {[%emt 00:00:59]} 18. Re2
{[%clk 00:11:27]} {[%emt 00:00:33]} Rfd8 {[%clk 00:09:20]} {[%emt 00:00:29]} 19.
Rde1 {[%clk 00:11:30]} {[%emt 00:00:07]} b5 {[%clk 00:07:42]} {[%emt 00:01:49]}
20. Ne5 {[%clk 00:11:12]} {[%emt 00:00:28]} Bxe5 {[%clk 00:05:20]} {[%emt
00:02:32]} 21. dxe5 {[%clk 00:11:19]} {[%emt 00:00:04]} Qe7 {[%clk 00:05:22]}
{[%emt 00:00:07]} 22. Qg3 {[%clk 00:11:12]} {[%emt 00:00:16]} Kh8 {[%clk
00:05:23]} {[%emt 00:00:10]} 23. Kh2 {[%clk 00:07:59]} {[%emt 00:03:22]} a5
{[%clk 00:05:06]} {[%emt 00:00:27]} 24. Qg4 {[%clk 00:07:32]} {[%emt 00:00:37]}
b4 {[%clk 00:05:05]} {[%emt 00:00:11]} 25. axb4 {[%clk 00:06:48]} {[%emt
00:00:54]} axb4 {[%clk 00:05:13]} {[%emt 00:00:02]} 26. Re3 {[%clk 00:06:29]}
{[%emt 00:00:29]} bxc3 {[%clk 00:04:48]} {[%emt 00:00:36]} 27. Rg3 {[%clk
00:06:16]} {[%emt 00:00:23]} Rg8 {[%clk 00:04:06]} {[%emt 00:00:51]} 28. bxc3
{[%clk 00:06:14]} {[%emt 00:00:12]} Na5 {[%clk 00:03:50]} {[%emt 00:00:27]} 29.
Qh5 {[%clk 00:06:12]} {[%emt 00:00:11]} Kh7 {[%clk 00:03:44]} {[%emt 00:00:16]}
30. Ree3 {[%clk 00:05:29]} {[%emt 00:00:53]} g6 {[%clk 00:03:20]} {[%emt
00:00:34]} 31. Qf3 {[%clk 00:04:50]} {[%emt 00:00:49]} Nc4 {[%clk 00:03:16]}
{[%emt 00:00:15]} 32. Re1 {[%clk 00:04:02]} {[%emt 00:00:57]} Rb8 {[%clk
00:02:40]} {[%emt 00:00:47]} 33. Qf4 {[%clk 00:03:48]} {[%emt 00:00:24]} g5
{[%clk 00:02:38]} {[%emt 00:00:13]} 34. Qd4 {[%clk 00:03:52]} {[%emt 00:00:05]}
Rg6 {[%clk 00:01:27]} {[%emt 00:01:21]} 35. h4 {[%clk 00:03:01]} {[%emt
00:01:01]} gxh4 {[%clk 00:00:58]} {[%emt 00:00:39]} 36. Rxg6 {[%clk 00:03:09]}
{[%emt 00:00:02]} fxg6 {[%clk 00:01:02]} {[%emt 00:00:06]} 37. g3 {[%clk
00:00:57]} {[%emt 00:02:22]} hxg3+ {[%clk 00:00:59]} {[%emt 00:00:13]} 38. fxg3
{[%clk 00:01:06]} {[%emt 00:00:02]} Rf8 {[%clk 00:00:59]} {[%emt 00:00:10]} 39.
Kg2 {[%clk 00:01:12]} {[%emt 00:00:03]} Qf7 {[%clk 00:00:50]} {[%emt 00:00:19]}
40. Qf4 {[%clk 00:01:03]} {[%emt 00:00:19]} g5 {[%clk 00:00:21]} {[%emt
00:00:39]} 41. Qxf7+ {[%clk 00:01:06]} {[%emt 00:00:08]} Rxf7 {[%clk 00:00:30]}
{[%emt 00:00:01]} 42. Re2 {[%clk 00:00:56]} {[%emt 00:00:19]} Kg6 {[%clk
00:00:38]} {[%emt 00:00:02]} 43. g4 {[%clk 00:00:58]} {[%emt 00:00:08]} h5
{[%clk 00:00:38]} {[%emt 00:00:10]} 44. gxh5+ {[%emt 00:00:03]} Kxh5 {[%emt
00:00:01]} 45. Kg3 {[%clk 00:00:37]} {[%emt 00:00:27]} Kg6 {[%clk 00:00:34]}
{[%emt 00:00:14]} 46. Kg4 {[%clk 00:00:40]} {[%emt 00:00:06]} Rf5 {[%clk
00:00:39]} {[%emt 00:00:05]} 47. Re1 {[%clk 00:00:34]} {[%emt 00:00:17]} Nxe5+
{[%clk 00:00:46]} {[%emt 00:00:02]} 48. Kg3 {[%clk 00:00:33]} {[%emt 00:00:11]}
Kf6 {[%clk 00:00:40]} {[%emt 00:00:16]} 49. Rh1 {[%clk 00:00:28]} {[%emt
00:00:14]} Rf3+ {[%clk 00:00:45]} {[%emt 00:00:05]} 50. Kg2 {[%clk 00:00:34]}
{[%emt 00:00:05]} Rxc3 {[%clk 00:00:50]} {[%emt 00:00:06]} 51. Rh6+ {[%clk
00:00:18]} {[%emt 00:00:26]} Kf5 {[%clk 00:00:58]} {[%emt 00:00:03]} 52. Bxg5
{[%clk 00:00:19]} {[%emt 00:00:09]} Kxg5 {[%clk 00:00:59]} {[%emt 00:00:09]} 53.
Rxe6 {[%clk 00:00:27]} {[%emt 00:00:02]} Kf5 {[%clk 00:01:06]} {[%emt
00:00:03]} 0-1

[Event "Snabb-SM för veteraner, 65+ 2019"]
[Site "Schackcentrum, Vegagatan 20, Gothenburg, Sweden"]
[Date "2019.10.06"]
[Round "8.5"]
[White "Herrman, Jan"]
[Black "Przysuski, Feliks"]
[Result "0-1"]
[TimeControl "15 minutes + 10 seconds per move from move one"]
[WhiteFideId "1731882"]
[BlackFideId "1712489"]
[WhiteElo "1929"]
[BlackElo "2008"]

1. d4 {[%clk 00:15:17]} {[%emt 00:00:01]} Nf6 {[%clk 00:15:17]} {[%emt
00:00:03]} 2. c4 {[%clk 00:15:22]} {[%emt 00:00:05]} e6 {[%clk 00:15:25]}
{[%emt 00:00:03]} 3. Nf3 {[%clk 00:15:28]} {[%emt 00:00:04]} b6 {[%clk
00:15:25]} {[%emt 00:00:11]} 4. g3 {[%clk 00:15:26]} {[%emt 00:00:12]} Bb7
{[%clk 00:15:33]} {[%emt 00:00:02]} 5. Bg2 {[%clk 00:15:33]} {[%emt 00:00:02]}
Be7 {[%clk 00:15:32]} {[%emt 00:00:11]} 6. O-O {[%clk 00:15:37]} {[%emt
00:00:06]} O-O {[%clk 00:15:39]} {[%emt 00:00:02]} 7. Nc3 {[%clk 00:15:26]}
{[%emt 00:00:22]} d5 {[%clk 00:15:46]} {[%emt 00:00:03]} 8. Ne5 {[%clk
00:15:05]} {[%emt 00:00:30]} c5 {[%clk 00:15:29]} {[%emt 00:00:26]} 9. cxd5
{[%clk 00:14:53]} {[%emt 00:00:24]} exd5 {[%clk 00:15:35]} {[%emt 00:00:04]} 10.
e3 {[%clk 00:13:41]} {[%emt 00:01:22]} Nbd7 {[%clk 00:14:52]} {[%emt 00:00:53]}
11. b3 {[%clk 00:12:45]} {[%emt 00:01:07]} Rc8 {[%clk 00:14:47]} {[%emt
00:00:15]} 12. Bb2 {[%clk 00:12:44]} {[%emt 00:00:11]} cxd4 {[%clk 00:13:51]}
{[%emt 00:01:06]} 13. exd4 {[%clk 00:12:45]} {[%emt 00:00:09]} Bb4 {[%clk
00:13:52]} {[%emt 00:00:06]} 14. Rc1 {[%clk 00:12:27]} {[%emt 00:00:31]} Nxe5
{[%clk 00:12:48]} {[%emt 00:01:14]} 15. dxe5 {[%clk 00:12:27]} {[%emt
00:00:10]} Ne4 {[%clk 00:12:50]} {[%emt 00:00:08]} 16. Nxe4 {[%clk 00:10:26]}
{[%emt 00:02:11]} dxe4 {[%clk 00:12:56]} {[%emt 00:00:03]} 17. Rxc8 {[%clk
00:06:58]} {[%emt 00:03:39]} Qxc8 {[%clk 00:12:55]} {[%emt 00:00:11]} 18. Qb1
{[%clk 00:06:01]} {[%emt 00:01:08]} Qa8 {[%clk 00:10:48]} {[%emt 00:02:17]} 19.
a3 {[%clk 00:05:33]} {[%emt 00:00:38]} Bd2 {[%clk 00:09:19]} {[%emt 00:01:39]}
20. Qd3 {[%clk 00:02:30]} {[%emt 00:03:13]} exd3 {[%clk 00:09:25]} {[%emt
00:00:03]} 0-1